Cogmind - Beta 11.1 @@@ ROGUE MODE // 2022.12.15 @ 19:03:27 Player: Candesce Result: Destroyed by D-53 Grenadier with Mini Grenade Launcher Performance ------------- Evolutions (0) 0 Regions Visited (2) 400 Robots Destroyed (24) 120 Value Destroyed (571) 571 Prototype IDs (0) 0 Alien Tech Used (0) 0 Bonus (0) 0 TOTAL SCORE: 1091 Bonus ------- None Cogmind --------- Core Integrity 0/250 Matter 280/300 Energy 28/100 System Corruption 0% Temperature Cool (2) Movement Core (150) Ox2 Location -10/Mines Parts ------- > --- POWER (1) -------- (None) > --- PROPULSION (2) --- (None) > --- UTILITY (2) ------ Improved Heat Sink > --- WEAPON (2) ------- Beam Cannon Beam Cannon > --- INVENTORY (5) ---- Mining Laser Peak State ------------ > --- POWER ------------ Ion Engine > --- PROPULSION ------- Aluminum Leg Aluminum Leg > --- UTILITY ---------- Improved Terrain Scanner Seismic Detector > --- WEAPON ----------- Light Assault Rifle Light Assault Rifle > --- INVENTORY -------- EM Pulse Gun Mining Laser [Rating: 9] Favorites ----------- Power Ion Engine Engine Ion Engine Propulsion Aluminum Leg Leg Aluminum Leg Utility Seismic Detector Device Seismic Detector Weapon Beam Cannon Energy Gun EM Pulse Gun Energy Cannon Beam Cannon Ballistic Gun Light Assault Rifle Special Weapon Mining Laser Build | -11 -10 -10 ------- Run | Scr Mat Min Slots Evolved . | . . . Power . | . . . Propulsion . | . . . Utility . | . . . Weapon . | . . . Parts Attached 23 | 8 11 4 Power 1 | 1 . . Engine 1 | 1 . . Core . | . . . Reactor . | . . . Propulsion 8 | 2 4 2 Treads . | . . . Leg 8 | 2 4 2 Wheel . | . . . Hover . | . . . Flight . | . . . Utility 3 | 2 1 . Device 3 | 2 1 . Storage . | . . . Processor . | . . . Hackware . | . . . Protection . | . . . Artifact . | . . . Weapon 11 | 3 6 2 Energy Gun 1 | 1 . . Energy Cannon 7 | . 5 2 Ballistic Gun 2 | 2 . . Ballistic Cannon . | . . . Launcher . | . . . Special Weapon 1 | . 1 . Impact Weapon . | . . . Slashing Weapon . | . . . Piercing Weapon . | . . . Special Melee Weapon . | . . . Unidentified Prototypes . | . . . Parts Lost 8 | . . 8 Power 1 | . . 1 Propulsion 4 | . . 4 Utility 1 | . . 1 Weapon 2 | . . 2 Highest Loss Streak 8 | . . 8 To Critical Strikes . | . . . Average Slot Usage (%) 99 | . 99 93 Engine 13 | . 14 12 Leg 27 | . 28 26 Device 27 | . 28 24 Energy Cannon 21 | . 20 28 Ballistic Gun 6 | . 6 . Naked Turns . | . . . Heaviest Build 13 | 9 13 13 Greatest Support 20 | 20 20 20 Greatest Overweight (x) . | . . . Average Overweight (x) . | . . . Largest Inventory Capacity 5 | 5 5 5 Average Capacity 5 | 5 5 5 Most Carried 5 | 2 5 5 Average Carried 4 | 1 4 4 Final Capacity 5 | 5 5 5 Final Carried 5 | 2 5 1 Class Distribution -------------------- 58% | Mutant 41% | Scavenger-Mutant Dominant Class ---------------- Mutant | -10/Materials Scavenger-Mutant | -10/Mines Resources | -11 -10 -10 ----------- Run | Scr Mat Min Matter Collected 412 | 294 118 . Remotely . | . . . Salvage Created 823 | 129 637 57 Parts 48 | 9 37 2 Haulers Intercepted 2 | . 2 . Recyclers Shooed 2 | 1 1 . Parts Field Recycled . | . . . Retrieved Matter . | . . . Parts Self-Destructed . | . . . Prevented . | . . . Kills | -11 -10 -10 ------- Run | Scr Mat Min Combat Hostiles Destroyed 15 | . 14 1 Cannons 14 | . 13 1 Classes Destroyed 8 | 2 5 1 Tunneler 2 | 2 . . Hauler 2 | . 2 . Recycler 1 | 1 . . Operator 2 | . 2 . Watcher 2 | . 2 . Swarmer 3 | . 3 . Grunt 11 | . 11 . Demolisher 1 | . . 1 Best Kill Streak 4 | 2 4 1 Combat Bots Only 4 | . 4 1 Max Kills in Single Turn 1 | 1 1 1 Gunslinging . | . . . Exploded . | . . . Melee . | . . . Uniques/NPCs Destroyed . | . . . Combat | -11 -10 -10 -------- Run | Scr Mat Min Damage Taken 1043 | . 268 775 Core 282 | . 53 229 Absorbed by Shields . | . . . Core Remaining (%) 100 | 100 . . Volleys Fired 74 | 7 61 6 Largest 2 | 2 2 2 Hottest 120 | 40 120 120 Shots Fired 133 | 14 107 12 Gun 42 | 14 28 . Cannon 88 | . 76 12 Launcher . | . . . Special 3 | . 3 . Kinetic 42 | 14 28 . Thermal 91 | . 79 12 Explosive . | . . . Electromagnetic . | . . . Robot Hit Streak 14 | 7 14 7 Robot Miss Streak 5 | 1 5 2 Penetration Max . | . . . Secondary Targets . | . . . Shots Hit Robots 85 | 12 65 8 Core Hits 33 | 6 23 4 Critical Kills 1 | . 1 . Critical Parts Destroyed . | . . . Critical Strikes 1 | . 1 . Meltdown 1 | . 1 . Melee Attacks . | . . . Impact . | . . . Slashing . | . . . Piercing . | . . . Sneak Attacks . | . . . Combat Hostiles . | . . . Follow-up Attacks . | . . . Damage Inflicted 1303 | 96 1048 159 Guns 230 | 96 134 . Cannons 1061 | . 902 159 Explosions . | . . . Melee . | . . . Ramming 12 | . 12 . Kinetic 230 | 96 134 . Thermal 1061 | . 902 159 Explosive . | . . . Electromagnetic . | . . . Impact . | . . . Slashing . | . . . Piercing . | . . . Highest Corruption . | . . . Average Corruption . | . . . Corruption Purged . | . . . Corruption Blocked . | . . . Overload Shots . | . . . Overflow Damage . | . . . Projectiles . | . . . Explosions . | . . . Melee . | . . . Knockbacks . | . . . Impact . | . . . Kinetic . | . . . Secondary . | . . . Self-Inflicted Damage . | . . . Shots . | . . . Rammed . | . . . Targets Rammed 2 | . 2 . Kicked 2 | . 2 . Crushed . | . . . Highest Temperature 156 | . 156 54 Average Temperature 45 | . 49 17 Received Heat Transfer 99 | . 99 . Siege Activations . | . . . Robots Corrupted . | . . . Combat Hostiles . | . . . Parts Fried . | . . . Impact Corruptions . | . . . Robots Melted 1 | . 1 . Combat Hostiles 1 | . 1 . Parts Melted 12 | . 12 . Heat Transferred 2183 | . 1850 333 Parts Sabotaged . | . . . Parts Stolen . | . . . Parts Stripped . | . . . Power Chain Reactions . | . . . Missiles Intercepted . | . . . Alert | -11 -10 -10 ------- Run | Scr Mat Min Peak Influence 206 | 15 206 40 Initial 40 | . 9 40 Average 70 | 5 78 34 Maximum Alert Level 1 | . 1 . Low Security (%) 97 | 100 97 100 Level 1 2 | . 2 . Level 2 . | . . . Level 3 . | . . . Level 4 . | . . . Level 5 . | . . . High Security . | . . . Max Security . | . . . Squads Dispatched 4 | . 4 . Investigation 2 | . 2 . Extermination . | . . . Reinforcement 2 | . 2 . Assault . | . . . Garrison . | . . . Intercept . | . . . Searches Triggered . | . . . Construction Impeded . | . . . Haulers Reinforced . | . . . Active Scanning Responses . | . . . Cargo Convoy Interrupts . | . . . Stealth | -11 -10 -10 --------- Run | Scr Mat Min Distress Signals 1 | . 1 . Communications Jammed . | . . . Distress Signals . | . . . Times Spotted 23 | . 21 2 Peak Tracking Total 5 | . 5 2 Tactical Retreats . | . . . Traps | -11 -10 -10 ------- Run | Scr Mat Min Traps Triggered . | . . . Indirectly . | . . . Trap Hack Attempts . | . . . Triggered . | . . . Disarmed . | . . . Reprogrammed . | . . . Reused . | . . . Traps Extracted . | . . . Installed . | . . . Triggered . | . . . Machines | -11 -10 -10 ---------- Run | Scr Mat Min Machines Disabled . | . . . Max in Single Turn . | . . . Machines Sabotaged . | . . . Garrisons Compromised . | . . . Overloaded Fab Kills . | . . . Hacking | -11 -10 -10 --------- Run | Scr Mat Min Machines Accessed 7 | . 7 . Terminals 5 | . 5 . Fabricators . | . . . Repair Stations . | . . . Recycling Units 2 | . 2 . Scanalyzers . | . . . Garrison Access . | . . . Total Hacks 34 | . 34 . Successful 20 | . 20 . Failed 14 | . 14 . Catastrophic . | . . . Database Lockouts . | . . . Manual 17 | . 17 . Terminals 30 | . 30 . Fabricators . | . . . Repair Stations . | . . . Recycling Units 4 | . 4 . Scanalyzers . | . . . Garrison Access . | . . . Terminal Hacks 12 | . 12 . Part Schematic 1 | . 1 . Robot Analysis 4 | . 4 . Terminal Index 1 | . 1 . Unreport Threat 1 | . 1 . Locate Traps 2 | . 2 . Recall Reinforcements 1 | . 1 . Hauler Manifests 1 | . 1 . Zone Layout 1 | . 1 . Fabricator Hacks . | . . . Repair Station Hacks . | . . . Recycling Unit Hacks 2 | . 2 . Report Inventory 2 | . 2 . Scanalyzer . | . . . Garrison Access Hacks . | . . . Unauthorized Hacks 6 | . 6 . Terminals 4 | . 4 . Assimilate 1 | . 1 . Botnet 2 | . 2 . Operators 1 | . 1 . Fabricators . | . . . Repair Stations . | . . . Recycling Units 2 | . 2 . Tunnel 2 | . 2 . Scanalyzers . | . . . Garrison Access . | . . . Data Cores Recovered . | . . . Used . | . . . Hacking Detections 5 | . 5 . Full Trace Events . | . . . Feedback Events . | . . . Feedback Blocked . | . . . Robot Schematics Acquired . | . . . Robots Built . | . . . Authchips . | . . . Time . | . . . Total Robot Build Rating . | . . . Part Schematics Acquired 1 | . 1 . Parts Built . | . . . Authchips . | . . . Time . | . . . Total Part Build Rating . | . . . Parts Repaired . | . . . Time . | . . . Parts Recycled . | . . . Recycled Matter . | . . . Retrieved Matter . | . . . Retrieved Components . | . . . Parts Scanalyzed . | . . . Part Schematics Acquired . | . . . Parts Damaged . | . . . Bothacking | -11 -10 -10 ------------ Run | Scr Mat Min Used RIF Installer . | . . . Robots Hacked . | . . . Non-combat . | . . . Combat . | . . . Robot Hacks Applied . | . . . Relay Couplers Released . | . . . Fabnet Peak Effective % . | . . . Robots Rewired . | . . . Allies Hacked . | . . . Hacks Repelled . | . . . Allies | -11 -10 -10 -------- Run | Scr Mat Min Total Allies . | . . . Largest Group . | . . . Highest-Rated Group . | . . . Highest-Rated Ally . | . . . Total Orders . | . . . Ally Attacks . | . . . Total Damage . | . . . Kills . | . . . Allies Corrupted . | . . . Allies Melted . | . . . Intel | -11 -10 -10 ------- Run | Scr Mat Min Robot Analysis Total 4 | . 4 . Derelict Logs Recovered . | . . . Drone Launches . | . . . Drone Recoveries . | . . . Exploration | -11 -10 -10 ------------- Run | Scr Mat Min Turns Passed 1271 | 95 1086 90 Spaces Moved 633 | 56 524 53 Core 8 | 8 . . Treads . | . . . Legs 625 | 48 524 53 Wheels . | . . . Hover . | . . . Flight . | . . . Fastest Speed 50 | 50 120 120 Average Speed 119 | 110 120 120 Slowest Speed 120 | 120 120 120 Overloaded Moves . | . . . Propulsion Burnouts . | . . . Robots Hopped . | . . . Cave-ins Triggered . | . . . Exploration Rate (%) 33 | 3 82 16 Regions Visited 2 Branch Regions 1 Pre-discovered Areas 2 | . 2 . Known Exits Taken . | . . . Unknown Exits Taken 2 | 1 1 . Scrap Searched . | . . . Spaces Dug 2 | . 2 . Terrain Destroyed 2 | . 2 . Melee . | . . . Projectile 2 | . 2 . AOE . | . . . Terrain Rammed . | . . . Walls Destroyed . | . . . Machines Disabled . | . . . Actions | -11 -10 -10 --------- Run | Scr Mat Min Total 1017 | 74 875 68 Wait 267 | 2 260 5 Move 631 | 55 523 53 Hop . | . . . Pick Up 10 | 2 8 . Fast Attach 8 | 7 1 . Attach 4 | . . 4 Detach . | . . . Swap 11 | 1 10 . Drop 10 | . 10 . Fire 74 | 7 61 6 Melee . | . . . Ram . | . . . Kick 2 | . 2 . Crush . | . . . Escape Stasis . | . . . Rewire . | . . . Trap . | . . . Miscellaneous . | . . . Route ------- -11/Scrapyard -10/Materials (discovered 3 exits: [*Mat x2] / [*Min]) -10/Mines History --------- Turn | Location | Event 6 | -11/Scrapyard | Discovered new exit (range 15) 96 | -11/Scrapyard | Entered Materials 268 | -10/Materials | Discovered new exit (range 12) 308 | -10/Materials | Build established: Mutant 567 | -10/Materials | Discovered new exit (range 14) 1029 | -10/Materials | Build established: Scavenger-Mutant 1139 | -10/Materials | Discovered new exit (range 15) 1182 | -10/Materials | Entered Mines 1193 | -10/Mines | Assembled infested the area 1254 | -10/Mines | Core integrity fell below 50% 1263 | -10/Mines | Core integrity fell below 20% 1272 | -10/Mines | Destroyed by D-53 Grenadier with Mini Grenade Launcher Last Messages --------------- 01174_ Acquired Aluminum Leg. 01177_ K-01 Serf collects debris. LOCATION=UNKNOWN GOAL=ESCAPE 01193_ ALERT: Infestation in the mines, dispatching Demolisher response squad. 01243_ K-01 Serf collects debris. 01250_ C-30 ARC bursts open, deploying its payload. 01250_ D-53 Grenadier unfolds itself. 01251_ Seismic Detector destroyed. 01259_ The unstable cave ceiling collapses. 01260_ Beam Cannon destroyed. 01260_ Aluminum Leg destroyed. 01261_ The unstable cave ceiling collapses. 01262_ Ion Engine destroyed. 01263_ The unstable cave ceiling collapses. 01266_ Aluminum Leg destroyed. 01266_ D-53 Grenadier destroyed. 01266_ Beam Cannon destroyed. 01267_ The unstable cave ceiling collapses. 01270_ Aluminum Leg destroyed. Map ----- +----------------------------------------------------+ | ?????????????????????????????????????????????????? | | ?????????????????????????????????????????????????? | | ?????????????????????????????????????????????????? | | ????????????????????????????????#????????????????? | | ????????????????????????????????# ???????????????? | | ????????????????????????????????# ???????????????? | | ????????????????????????????????# ???????????????? | | ????????????????????????????????# #??????????????? | | ???????????????????????????????## #?????????????? | | ???????????????????????????????# ###??????????? | | ???????????????????????????????# ###????????? | | ????????????????????????????????# ##???????? | | ?????????????????????????????????# #???????? | | ?????????????????????????????????## #???????? | | ???????????????##################### ##???????? | | ???????????????# #????????? | | ???????????????# #???????? | | ???????????????# ################## #???????? | | ???????????????# #????????????????## #???????? | | ???????????????# #?????????????????######???????? | | ???????????????# ###########????????????????????? | | ???? ????????##% ## ##???????????????????? | | ????"" ####### d %= ##??????????????????? | | ????"" ] ##?????????????????? | | ????"" ##????????????????? | | ?? ###### @ #????????????????? | | ????????????# #????????????????? | | ???????????# ### ##????????????????? | | ???????????# ##?## ###?????????????????? | | ???????????# #???# # ##???????????????????? | | ???????????# #???# ## ##????????????????????? | | ???????????# #???##?#####?????????????????????? | | ???????????## ##????????????????????????????????? | | ????????????####?????????????????????????????????? | | ?????????????????????????????????????????????????? | | ?????????????????????????????????????????????????? | | ?????????????????????????????????????????????????? | | ?????????????????????????????????????????????????? | | ?????????????????????????????????????????????????? | | ?????????????????????????????????????????????????? | | | | | | | | | | | | | | | | | | | | | +----------------------------------------------------+ Best States ------------- Heat Dissipation 39 Energy Generation 10 Energy Capacity 250 Matter Stores 300 Matter Capacity 300 Sight Range 16 Terrain Scan Range 16 Terrain Scan Density 10 Evasion (%) 55 Item Schematics ----------------- Hcp. Storage Unit | -10/Materials | Hacked Robot Schematics ------------------ None Fabricated ------------ Nothing Alien Tech Used ----------------- None Achievements -------------- None Challenges ------------ None Game ------ Seed GaussMissileCasing Manual? 0 Play Time 00:16:03 Cumulative 123.5 hours Start 2022.12.15 @ 10:34:40 End 2022.12.15 @ 19:03:27 Sessions 3 Manual Loads 0 Difficulty Rogue Special Mode None Game No. 177 Rogue 177 Adventurer 0 Explorer 0 Win Type - Total 2 Types 1/0/0/1/0/0/0/0/0 Lore% 61 Gallery% 70 Achievement% 54 Wizard Run 0 Options --------- ASCII 0 Keyboard 0 Movement Numpad Keybinds 0 Fullscreen 1 Font 14/SmallcapsGlow Map View 84x54 Tactical HUD 1 Map Filters NONE Filters NONE Steam 1 RUN: 6c134c00-e2d2-4769-8b7e-3bbf1a620012